Workbook

Sheet Sheet2
A1: 贵州省自然资源厅2025年公开招聘事业单位工作人员 总成绩及进入体检人员名单
A2: 序号 | B2: 姓名 | C2: 报考单位名称 及代码 | D2: 报考岗位类别及代码 | E2: 准考证号码 | F2: 笔试成绩（折算百分制后） | G2: 笔试折算成绩（40%） | H2: 面试成绩 | I2: 面试成绩折算(60%) | J2: 总成绩 | K2: 是否进入体检 | L2: 备注
A4: 1 | B4: 敬洪云 | C4: 4001贵州省土地矿产资源储备局 | D4: 22828400101财务管理 | E4: 1152280724319 | F4: 74 | G4: =F4*0.4 -> 29.60 | H4: 84.80 | I4: =H4*0.6 -> 50.88 | J4: =G4+I4 -> 80.48 | K4: 是
A5: 2 | B5: 覃牧 | C5: 4001贵州省土地矿产资源储备局 | D5: 22828400101财务管理 | E5: 1152280721617 | F5: 78.17 | G5: 31.27 | H5: 79.20 | I5: 47.52 | J5: 78.79 | K5: 否
A6: 3 | B6: 龙俊阳 | C6: 4001贵州省土地矿产资源储备局 | D6: 22828400101财务管理 | E6: 1152280720212 | F6: 72 | G6: 28.80 | H6: 82.40 | I6: 49.44 | J6: 78.24 | K6: 否
A7: 4 | B7: 刘鑫丽 | C7: 4002贵州省自然资源勘测规划研究院 | D7: 22828400201国土空间规划 | E7: 3152281403718 | F7: 62 | G7: 24.80 | H7: 81.40 | I7: 48.84 | J7: =I7+G7 -> 73.64 | K7: 是
A8: 5 | B8: 刘煜钦 | C8: 4002贵州省自然资源勘测规划研究院 | D8: 22828400201国土空间规划 | E8: 3152281406108 | F8: 57.67 | G8: 23.07 | H8: 83.60 | I8: 50.16 | J8: 73.23 | K8: 是
A9: 6 | B9: 袁明来 | C9: 4002贵州省自然资源勘测规划研究院 | D9: 22828400201国土空间规划 | E9: 3152281404925 | F9: 58.83 | G9: 23.53 | H9: 79.60 | I9: 47.76 | J9: 71.29 | K9: 是
A10: 7 | B10: 汪建 | C10: 4002贵州省自然资源勘测规划研究院 | D10: 22828400201国土空间规划 | E10: 3152281407101 | F10: 58.17 | G10: 23.27 | H10: 79.80 | I10: 47.88 | J10: 71.15 | K10: 否
A11: 8 | B11: 谭清文 | C11: 4002贵州省自然资源勘测规划研究院 | D11: 22828400201国土空间规划 | E11: 3152281405930 | F11: 55.5 | G11: 22.20 | H11: 79.60 | I11: 47.76 | J11: 69.96 | K11: 否
A12: 9 | B12: 伍婧萱 | C12: 4002贵州省自然资源勘测规划研究院 | D12: 22828400201国土空间规划 | E12: 3152281409914 | F12: 53.67 | G12: 21.47 | H12: 79.20 | I12: 47.52 | J12: 68.99 | K12: 否
A13: 10 | B13: 严远蒙 | C13: 4002贵州省自然资源勘测规划研究院 | D13: 22828400201国土空间规划 | E13: 3152281407704 | F13: 57 | G13: 22.80 | H13: 75.20 | I13: 45.12 | J13: 67.92 | K13: 否
A14: 11 | B14: 娄路红 | C14: 4002贵州省自然资源勘测规划研究院 | D14: 22828400201国土空间规划 | E14: 3152281406009 | F14: 54.67 | G14: 21.87 | H14: 75.00 | I14: 45.00 | J14: 66.87 | K14: 否
A15: 12 | B15: 张茸 | C15: 4002贵州省自然资源勘测规划研究院 | D15: 22828400201国土空间规划 | E15: 3152281405817 | F15: 54.83 | G15: 21.93 | H15: 0.00 | I15: 0.00 | J15: 21.93 | K15: 否
A16: 13 | B16: 晏莉春 | C16: 4002贵州省自然资源勘测规划研究院 | D16: 22828400202调查监测与耕地保护 | E16: 3152281407509 | F16: 63.67 | G16: 25.47 | H16: 83.00 | I16: 49.80 | J16: 75.27 | K16: 是
A17: 14 | B17: 朱颖熙 | C17: 4002贵州省自然资源勘测规划研究院 | D17: 22828400202调查监测与耕地保护 | E17: 3152281402716 | F17: 64.67 | G17: 25.87 | H17: 80.80 | I17: 48.48 | J17: 74.35 | K17: 否
A18: 15 | B18: 王禛瑶 | C18: 4002贵州省自然资源勘测规划研究院 | D18: 22828400202调查监测与耕地保护 | E18: 3152281402515 | F18: 63.33 | G18: 25.33 | H18: 81.20 | I18: 48.72 | J18: 74.05 | K18: 否
A19: 16 | B19: 任莹 | C19: 4002贵州省自然资源勘测规划研究院 | D19: 22828400203统计分析 | E19: 3152281406803 | F19: 61.67 | G19: 24.67 | H19: 81.20 | I19: 48.72 | J19: 73.39 | K19: 是
A20: 17 | B20: 王杨孟秋 | C20: 4002贵州省自然资源勘测规划研究院 | D20: 22828400203统计分析 | E20: 3152281404504 | F20: 55.17 | G20: 22.07 | H20: 79.60 | I20: 47.76 | J20: 69.83 | K20: 否
A21: 18 | B21: 陈奕华 | C21: 4003贵州省第一测绘院（贵州省北斗导航位置服务中心） | D21: 22828400301软件开发 | E21: 3152281405527 | F21: 64.33 | G21: =F21*0.4 -> 25.73 | H21: 84.84 | I21: =H21*0.6 -> 50.90 | J21: =G21+I21 -> 76.63 | K21: 是 | L21: 实操成绩89.4分、结构化面试成绩78分。实际操作能力测试占面试总成绩的60%，结构化面试成绩占面试总成绩的40%，折后面试总成绩为84.84分。
A22: 19 | B22: 姚凯 | C22: 4003贵州省第一测绘院（贵州省北斗导航位置服务中心） | D22: 22828400301软件开发 | E22: 3152281409712 | F22: 61.50 | G22: =F22*0.4 -> 24.60 | H22: 69.24 | I22: =H22*0.6 -> 41.54 | J22: =G22+I22 -> 66.14 | K22: 否 | L22: 实操成绩59分、结构化面试成绩84.6分。实际操作能力测试占面试总成绩的60%，结构化面试成绩占面试总成绩的40%，折后面试总成绩为69.24分。
A23: 20 | B23: 段亦 | C23: 4003贵州省第一测绘院（贵州省北斗导航位置服务中心） | D23: 22828400301软件开发 | E23: 3152281402714 | F23: 60.33 | G23: =F23*0.4 -> 24.13 | H23: 66.08 | I23: =H23*0.6 -> 39.65 | J23: =G23+I23 -> 63.78 | K23: 否 | L23: 实操成绩59.6分、结构化面试成绩75.8分。实际操作能力测试占面试总成绩的60%，结构化面试成绩占面试总成绩的40%，折后面试总成绩为66.08分。
A24: 21 | B24: 周鑫 | C24: 4003贵州省第一测绘院（贵州省北斗导航位置服务中心） | D24: 22828400302网络管理 | E24: 3152281408026 | F24: 61.17 | G24: =F24*0.4 -> 24.47 | H24: 79.60 | I24: =H24*0.6 -> 47.76 | J24: =G24+I24 -> 72.23 | K24: 是
A25: 22 | B25: 徐锦 | C25: 4003贵州省第一测绘院（贵州省北斗导航位置服务中心） | D25: 22828400302网络管理 | E25: 3152281407425 | F25: 59.33 | G25: =F25*0.4 -> 23.73 | H25: 80.60 | I25: =H25*0.6 -> 48.36 | J25: =G25+I25 -> 72.09 | K25: 否
A26: 23 | B26: 刘霖 | C26: 4003贵州省第一测绘院（贵州省北斗导航位置服务中心） | D26: 22828400302网络管理 | E26: 3152281409810 | F26: 61.17 | G26: =F26*0.4 -> 24.47 | H26: 79.00 | I26: =H26*0.6 -> 47.40 | J26: =G26+I26 -> 71.87 | K26: 否
A27: 24 | B27: 喻林丽 | C27: 4003贵州省第一测绘院（贵州省北斗导航位置服务中心） | D27: 22828400303财务管理 | E27: 1152280718817 | F27: 66.67 | G27: =F27*0.4 -> 26.67 | H27: 81.20 | I27: =H27*0.6 -> 48.72 | J27: =G27+I27 -> 75.39 | K27: 是
A28: 25 | B28: 张文艳 | C28: 4003贵州省第一测绘院（贵州省北斗导航位置服务中心） | D28: 22828400303财务管理 | E28: 1152280718013 | F28: 66.67 | G28: 26.67 | H28: 79.40 | I28: 47.64 | J28: 74.31 | K28: 否
A29: 26 | B29: 程媛媛 | C29: 4003贵州省第一测绘院（贵州省北斗导航位置服务中心） | D29: 22828400303财务管理 | E29: 1152280728210 | F29: 66.83 | G29: 26.73 | H29: 79.20 | I29: 47.52 | J29: 74.25 | K29: 否
A30: 27 | B30: 邱宇幸 | C30: 4003贵州省第一测绘院（贵州省北斗导航位置服务中心） | D30: 22828400304农林经济管理 | E30: 3152281401824 | F30: 62.67 | G30: 25.07 | H30: 76.00 | I30: 45.60 | J30: 70.67 | K30: 是
A31: 28 | B31: 秦大健 | C31: 4003贵州省第一测绘院（贵州省北斗导航位置服务中心） | D31: 22828400304农林经济管理 | E31: 3152281401709 | F31: 60.50 | G31: 24.20 | H31: 76.80 | I31: 46.08 | J31: 70.28 | K31: 否
A32: 29 | B32: 杨碧玉 | C32: 4003贵州省第一测绘院（贵州省北斗导航位置服务中心） | D32: 22828400304农林经济管理 | E32: 3152281406225 | F32: 60.00 | G32: 24.00 | H32: 76.20 | I32: 45.72 | J32: 69.72 | K32: 否
A33: 30 | B33: 徐泽伟 | C33: 4004贵州省测绘产品质量监督检验站 | D33: 22828400401系统研发人员 | E33: 3152281400909 | F33: 60.00 | G33: 24.00 | H33: 76.00 | I33: 45.60 | J33: 69.60 | K33: 是 | L33: 实操成绩74分、结构化面试成绩79分。实际操作能力测试占面试总成绩的60%，结构化面试成绩占面试总成绩的40%，折后面试总成绩为76分。
A34: 31 | B34: 石志毓 | C34: 4004贵州省测绘产品质量监督检验站 | D34: 22828400401系统研发人员 | E34: 3152281402412 | F34: 59.67 | G34: 23.87 | H34: 73.04 | I34: 43.82 | J34: 67.69 | K34: 否 | L34: 实操成绩73.6分、结构化面试成绩72.2分。实际操作能力测试占面试总成绩的60%，结构化面试成绩占面试总成绩的40%，折后面试总成绩为73.04分。
A35: 32 | B35: 蒋畅 | C35: 4004贵州省测绘产品质量监督检验站 | D35: 22828400401系统研发人员 | E35: 3152281401510 | F35: 61.50 | G35: 24.60 | H35: 31.92 | I35: 19.15 | J35: 43.75 | K35: 否 | L35: 实操成绩0分、结构化面试成绩79.8分。实际操作能力测试占面试总成绩的60%，结构化面试成绩占面试总成绩的40%，折后面试总成绩为31.92分。
A36: 33 | B36: 张弛 | C36: 4006贵州省地质博物馆（贵州省地质资料馆） | D36: 22828400501财务管理 | E36: 1152280721919 | F36: 73.17 | G36: =F36*40% -> 29.27 | H36: 83.20 | I36: =H36*60% -> 49.92 | J36: 79.19 | K36: 是
A37: 34 | B37: 杜培翼 | C37: 4005贵州省地质博物馆（贵州省地质资料馆） | D37: 22828400501财务管理 | E37: 1152280717930 | F37: 73.17 | G37: 29.27 | H37: 79.80 | I37: 47.88 | J37: 77.15 | K37: 否
A38: 35 | B38: 姚远航 | C38: 4007贵州省地质博物馆（贵州省地质资料馆） | D38: 22828400501财务管理 | E38: 1152280719617 | F38: 67.50 | G38: 27.00 | H38: 77.00 | I38: 46.20 | J38: 73.20 | K38: 否
A39: 36 | B39: 陈艺 | C39: 4008贵州省地质博物馆（贵州省地质资料馆） | D39: 22828400502文化创意及科普教育 | E39: 1152280805206 | F39: 67.17 | G39: 26.87 | H39: 81.60 | I39: 48.96 | J39: 75.83 | K39: 是
A40: 37 | B40: 杜为 | C40: 4010贵州省地质博物馆（贵州省地质资料馆） | D40: 22828400502文化创意及科普教育 | E40: 1152280804612 | F40: 64.33 | G40: 25.73 | H40: 81.40 | I40: 48.84 | J40: 74.57 | K40: 是
A41: 38 | B41: 张瑞林 | C41: 4011贵州省地质博物馆（贵州省地质资料馆） | D41: 22828400502文化创意及科普教育 | E41: 1152280806528 | F41: 64.17 | G41: 25.67 | H41: 81.40 | I41: 48.84 | J41: 74.51 | K41: 否
A42: 39 | B42: 方晋成 | C42: 4009贵州省地质博物馆（贵州省地质资料馆） | D42: 22828400502文化创意及科普教育 | E42: 1152280722729 | F42: 66.83 | G42: 26.73 | H42: 78.40 | I42: 47.04 | J42: 73.77 | K42: 否
A43: 40 | B43: 陈晓月 | C43: 4013贵州省地质博物馆（贵州省地质资料馆） | D43: 22828400502文化创意及科普教育 | E43: 1152280800414 | F43: 62.83 | G43: 25.13 | H43: 80.20 | I43: 48.12 | J43: 73.25 | K43: 否
A44: 41 | B44: 汪莉 | C44: 4012贵州省地质博物馆（贵州省地质资料馆） | D44: 22828400502文化创意及科普教育 | E44: 1152280806407 | F44: 63.33 | G44: 25.33 | H44: 0.00 | I44: 0.00 | J44: 25.33 | K44: 否
